[Event "XTX Markets London Masters 2024"]
[Site "London"]
[Date "2024.11.30"]
[Round "2.36"]
[White "Sivanandan, Bodhana"]
[Black "Bin-Suhayl, Ieysaa"]
[Result "0-1"]
[ECO "C06"]
[WhiteElo "2082"]
[BlackElo "2183"]
[Annotator "RC"]
[PlyCount "172"]
[EventDate "2024.11.28"]
[EventType "swiss"]
[EventCountry "ENG"]
[SourceTitle "playchess.com"]
[Source "ChessBase"]
[SourceQuality "1"]
[TimeControl "40/5400+30:1800+30"]

1. e4 {[%emt 0:00:03]} e6 {[%emt 0:19:53]} 2. d4 {[%emt 0:00:45]} d5 {[%emt 0:00:54]} 3. Nd2 {[%emt 0:00:26]} Nf6 {[%emt 0:00:05]} 4. e5 {[%emt 0:00:14]} Nfd7 {[%emt 0:00:04]} 5. Bd3 {[%emt 0:00:40]} c5 {[%emt 0:00:04]} 6. c3 {[%emt 0:00:09]} Nc6 {[%emt 0:00:04]} 7. Ne2 {[%emt 0:00:16]} cxd4 {[%emt 0:00:04]} 8. cxd4 {[%emt 0:00:16]} f6 {[%emt 0:00:06]} 9. exf6 {[%emt 0:00:23]} Nxf6 {[%emt 0:00:04]} 10. Nf3 {[%emt 0:00:55]} Bd6 {[%emt 0:00:09]} 11. O-O {[%emt 0:00:11]} O-O {[%emt 0:00:02]} 12. Bf4 {[%emt 0:00:59]} Bxf4 {[%emt 0:00:06]} 13. Nxf4 {[%emt 0:00:14]} Ne4 {[%emt 0:00:05]} 14. Qc1 {[%emt 0:01:50]} Ng5 {[%emt 0:00:14]} 15. Nxg5 {[%emt 0:00:22]} Qxg5 {[%emt 0:00:03]} 16. Bxh7+ {[%emt 0:01:19]} Kxh7 {[%emt 0:00:05]} 17. Nxe6 {[%emt 0:00:15]} Qf5 {[%emt 0:00:03]} 18. Nxf8+ {[%emt 0:00:38]} Qxf8 {[%emt 0:00:04]} 19. Qg5 {[%emt 0:01:42]} Qf5 {[%emt 0:00:04]} 20. Qxf5+ {[%emt 0:07:28]} Bxf5 {[%emt 0:00:05]} 21. Rad1 {[%emt 0:01:17]} g5 {[%emt 0:04:02]} 22. h3 {[%emt 0:05:00]} Rf8 {[%emt 0:03:10]} 23. Rfe1 {[%emt 0:06:24]} Kg7 {[%emt 0:03:00]} 24. Re3 {[%emt 0:02:24]} Bg6 {[%emt 0:00:37]} 25. Rb3 {[%emt 0:09:29]} Rf7 {[%emt 0:02:01]} 26. Rb5 {[%emt 0:02:02]} Rd7 {[%emt 0:00:07]} 27. Rc5 {[%emt 0:01:00]} Kf6 {[%emt 0:05:59]} 28. a3 {[%emt 0:02:23]} Kf5 {[%emt 0:06:59]} 29. f3 {[%emt 0:01:21]} Ke6 {[%emt 0:00:06]} 30. b4 {[%emt 0:02:29]} Kd6 {[%emt 0:01:54]} 31. Rc3 {[%emt 0:01:55]} a6 {[%emt 0:03:14]} 32. Kf2 {[%emt 0:00:32]} Rh7 {[%emt 0:02:56]} 33. Rd2 {[%emt 0:02:37]} Rh4 {[%emt 0:00:26]} 34. Ke3 {[%emt 0:00:17]} Be8 {[%emt 0:03:58]} 35. Rc1 {[%emt 0:16:07]} Bd7 {[%emt 0:03:26]} 36. Rh1 {[%emt 0:02:17]} a5 {[%emt 0:07:57]} 37. g4 {[%emt 0:08:19]} axb4 {[%emt 0:12:54]} 38. axb4 {[%emt 0:00:12]} Rh8 {[%emt 0:00:12]} 39. h4 {[%emt 0:07:23]} gxh4 {[%emt 0:05:51]} 40. Rdh2 {[%emt 0:00:49]} Re8+ {[%emt 0:01:32]} 41. Kf2 {[%emt 0:30:43]} Nxd4 {[%emt 0:34:14]} 42. Rxh4 {[%emt 0:00:24]} Rf8 {[%emt 0:02:53]} 43. R1h3 {[%emt 0:02:41]} Ne6 {[%emt 0:07:13]} 44. Rh6 {[%emt 0:09:52]} Ke5 {[%emt 0:00:00]} 45. R3h5+ {[%emt 0:00:00]} Kd4 {[%emt 0:00:00]} 46. Rh7 {[%emt 0:00:00]} Bc6 {[%emt 0:00:00]} 47. Rf5 {[%emt 0:00:00]} Re8 {[%emt 0:00:00]} 48. g5 {[%emt 0:00:00]} Kc4 {[%emt 0:00:00]} 49. g6 {[%emt 0:00:00]} Kxb4 {[%emt 0:01:34]} 50. g7 {[%emt 0:00:00]} d4 {[%emt 0:00:05]} 51. Rfh5 {[%emt 0:02:22]} d3 {[%emt 0:01:19]} 52. Rh1 {[%emt 0:01:42]} d2 {[%emt 0:01:59]} 53. R7h4+ {[%emt 0:01:36]} Kc3 {[%emt 0:00:37]} 54. Rg4 {[%emt 0:00:40]} Nxg7 {[%emt 0:00:37]} 55. Rxg7 {[%emt 0:00:08]} Kc2 {[%emt 0:00:05]} 56. Rgg1 {[%emt 0:00:26]} Rd8 {[%emt 0:02:08]} 57. Rd1 {[%emt 0:00:28]} Rd3 {[%emt 0:00:08]} 58. Ra1 {[%emt 0:01:20]} d1=Q {[%emt 0:00:36]} 59. Rhxd1 {[%emt 0:00:11]} Rxd1 {[%emt 0:00:03]} 60. Ra5 {[%emt 0:00:20]} Rd2+ {[%emt 0:00:26]} 61. Ke1 {[%emt 0:00:28]} Rd3 {[%emt 0:00:22]} 62. f4 {[%emt 0:00:12]} Re3+ {[%emt 0:00:09]} 63. Kf2 {[%emt 0:00:08]} Rf3+ {[%emt 0:00:04]} 64. Ke2 {[%emt 0:00:09]} Rxf4 {[%emt 0:00:10]} 65. Rc5+ {[%emt 0:00:12]} Kb3 {[%emt 0:00:06]} 66. Ke3 {[%emt 0:00:08]} Rc4 {[%emt 0:00:06]} 67. Rg5 {[%emt 0:00:05]} b5 {[%emt 0:00:06]} 68. Kd2 {[%emt 0:00:08]} b4 {[%emt 0:00:07]} 69. Rg3+ {[%emt 0:00:10]} Kb2 {[%emt 0:00:08]} 70. Rg6 {[%emt 0:00:13]} b3 {[%emt 0:00:10]} 71. Rf6 {[%emt 0:00:09]} Be4 {[%emt 0:00:13]} 72. Ke3 {[%emt 0:00:15]} Bc2 {[%emt 0:00:08]} 73. Rf2 {[%emt 0:00:08]} Ka3 {[%emt 0:00:17]} 74. Rg2 {[%emt 0:00:14]} b2 {[%emt 0:00:08]} 75. Rg1 {[%emt 0:00:08]} b1=Q {[%emt 0:00:11]} 76. Rxb1 {[%emt 0:00:09]} Bxb1 {[%emt 0:00:03]} 77. Kf2 {[%emt 0:00:19]} Re4 {[%emt 0:00:04]} 78. Kg1 {[%emt 0:00:12]} Re2 {[%emt 0:00:04]} 79. Kf1 {[%emt 0:00:10]} Bd3 {[%emt 0:00:02]} 80. Kg1 {[%emt 0:00:12]} Kb3 {[%emt 0:00:04]} 81. Kh1 {[%emt 0:00:15]} Kc3 {[%emt 0:00:09]} 82. Kg1 {[%emt 0:00:31]} Kd4 {[%emt 0:00:04]} 83. Kh1 {[%emt 0:00:10]} Ke3 {[%emt 0:00:03]} 84. Kg1 {[%emt 0:00:09]} Kf3 {[%emt 0:00:02]} 85. Kh1 {[%emt 0:00:10]} Kg3 {[%emt 0:00:02]} 86. Kg1 {[%emt 0:00:08]} Re1# {[%emt 0:00:03]} 0-1

[Event "XTX Markets London Masters 2024"]
[Site "London"]
[Date "2024.11.30"]
[Round "2.37"]
[White "Finn, Peter"]
[Black "Murawski, Jan"]
[Result "1-0"]
[ECO "D35"]
[WhiteElo "2175"]
[BlackElo "2065"]
[Annotator "RC"]
[PlyCount "91"]
[EventDate "2024.11.28"]
[EventType "swiss"]
[EventCountry "ENG"]
[SourceTitle "playchess.com"]
[Source "ChessBase"]
[SourceQuality "1"]
[TimeControl "40/5400+30:1800+30"]

1. d4 {[%emt 0:00:03]} Nf6 {[%emt 0:00:04]} 2. c4 {[%emt 0:00:07]} e6 {[%emt 0:00:04]} 3. Nc3 {[%emt 0:00:05]} d5 {[%emt 0:00:03]} 4. cxd5 {[%emt 0:00:05]} exd5 {[%emt 0:00:04]} 5. Bg5 {[%emt 0:00:09]} Be7 {[%emt 0:00:04]} 6. e3 {[%emt 0:00:11]} h6 {[%emt 0:00:05]} 7. Bh4 {[%emt 0:00:08]} c6 {[%emt 0:00:09]} 8. Bd3 {[%emt 0:00:08]} Ne4 {[%emt 0:00:12]} 9. Bxe7 {[%emt 0:00:10]} Qxe7 {[%emt 0:00:06]} 10. Bxe4 {[%emt 0:00:07]} dxe4 {[%emt 0:00:05]} 11. Nge2 {[%emt 0:00:06]} O-O {[%emt 0:01:12]} 12. O-O {[%emt 0:00:09]} f5 {[%emt 0:08:28]} 13. Nf4 {[%emt 0:06:19]} Kh7 {[%emt 0:10:22]} 14. f3 {[%emt 0:01:23]} Nd7 {[%emt 0:16:52]} 15. fxe4 {[%emt 0:02:56]} fxe4 {[%emt 0:00:55]} 16. Qh5 {[%emt 0:04:08]} Qe8 {[%emt 0:13:50]} 17. Qxe8 {[%emt 0:24:10]} Rxe8 {[%emt 0:01:10]} 18. Nh5 {[%emt 0:01:42]} Kg6 {[%emt 0:03:05]} 19. g4 {[%emt 0:01:22]} Nb6 {[%emt 0:05:04]} 20. h3 {[%emt 0:03:57]} Nc4 {[%emt 0:06:16]} 21. Nd1 {[%emt 0:04:23]} Nd2 {[%emt 0:10:05]} 22. Rf2 {[%emt 0:03:09]} Nf3+ {[%emt 0:01:24]} 23. Kg2 {[%emt 0:00:33]} Ne1+ {[%emt 0:09:15]} 24. Kg3 {[%emt 0:03:13]} Be6 {[%emt 0:01:05]} 25. Nf4+ {[%emt 0:34:12]} Kh7 {[%emt 0:00:07]} 26. Nxe6 {[%emt 0:00:16]} Rxe6 {[%emt 0:00:08]} 27. Nc3 {[%emt 0:00:23]} Nd3 {[%emt 0:13:46]} 28. Rf7 {[%emt 0:00:37]} b6 {[%emt 0:00:00]} 29. b3 {[%emt 0:00:39]} a5 {[%emt 0:00:00]} 30. Raf1 {[%emt 0:00:37]} Nb4 {[%emt 0:00:00]} 31. Rb7 {[%emt 0:00:47]} b5 {[%emt 0:01:04]} 32. Rff7 {[%emt 0:00:12]} Rg8 {[%emt 0:00:03]} 33. h4 {[%emt 0:03:11]} h5 {[%emt 0:01:13]} 34. g5 {[%emt 0:00:34]} Nc2 {[%emt 0:00:02]} 35. Kf4 {[%emt 0:00:52]} Kg6 {[%emt 0:00:43]} 36. Nxe4 {[%emt 0:02:45]} Nb4 {[%emt 0:00:34]} 37. Nc3 {[%emt 0:00:39]} Nc2 {[%emt 0:00:30]} 38. Nd1 {[%emt 0:01:46]} Ne1 {[%emt 0:00:47]} 39. e4 {[%emt 0:01:01]} Ng2+ {[%emt 0:00:13]} 40. Kg3 {[%emt 0:00:17]} Nxh4 {[%emt 0:00:46]} 41. Rf4 {[%emt 0:04:20]} Rd6 {[%emt 0:06:37]} 42. Kxh4 {[%emt 0:07:34]} Rxd4 {[%emt 0:00:06]} 43. Nf2 {[%emt 0:01:39]} Rd2 {[%emt 0:08:38]} 44. Nh3 {[%emt 0:00:43]} Rxa2 {[%emt 0:03:57]} 45. Rf6+ {[%emt 0:00:16]} gxf6 {[%emt 0:00:21]} 46. Nf4# {[%emt 0:00:06]} 1-0

[Event "XTX Markets London Masters 2024"]
[Site "London"]
[Date "2024.11.30"]
[Round "2.38"]
[White "Zhang, Kendrick Botong"]
[Black "Birkisson, Bjorn Holm"]
[Result "1-0"]
[ECO "B12"]
[WhiteElo "2011"]
[BlackElo "2165"]
[Annotator "RC"]
[PlyCount "127"]
[EventDate "2024.11.28"]
[EventType "swiss"]
[EventCountry "ENG"]
[SourceTitle "playchess.com"]
[Source "ChessBase"]
[SourceQuality "1"]
[TimeControl "40/5400+30:1800+30"]

1. e4 {[%emt 0:00:05]} c6 {[%emt 0:06:59]} 2. d4 {[%emt 0:00:08]} d5 {[%emt 0:00:03]} 3. e5 {[%emt 0:00:27]} Bf5 {[%emt 0:00:06]} 4. Nf3 {[%emt 0:00:24]} e6 {[%emt 0:00:08]} 5. Be2 {[%emt 0:00:23]} Nd7 {[%emt 0:00:14]} 6. Nbd2 {[%emt 0:05:01]} h6 {[%emt 0:14:19]} 7. Nb3 {[%emt 0:02:43]} Ne7 {[%emt 0:01:58]} 8. O-O {[%emt 0:00:44]} Bh7 {[%emt 0:00:34]} 9. Bd2 {[%emt 0:11:19]} Ng6 {[%emt 0:04:55]} 10. Ne1 {[%emt 0:10:00]} Be7 {[%emt 0:07:29]} 11. f4 {[%emt 0:03:20]} O-O {[%emt 0:00:24]} 12. Nd3 {[%emt 0:10:40]} b6 {[%emt 0:03:39]} 13. c3 {[%emt 0:02:46]} c5 {[%emt 0:00:35]} 14. Nbc1 {[%emt 0:01:45]} Rc8 {[%emt 0:17:19]} 15. Bg4 {[%emt 0:03:23]} Rc6 {[%emt 0:03:10]} 16. f5 {[%emt 0:04:14]} exf5 {[%emt 0:00:16]} 17. Bxf5 {[%emt 0:00:08]} Nb8 {[%emt 0:10:31]} 18. e6 {[%emt 0:10:10]} fxe6 {[%emt 0:07:19]} 19. Bxg6 {[%emt 0:00:12]} Bxg6 {[%emt 0:00:34]} 20. Rxf8+ {[%emt 0:03:13]} Bxf8 {[%emt 0:00:58]} 21. Ne5 {[%emt 0:00:09]} Be4 {[%emt 0:00:22]} 22. Nxc6 {[%emt 0:00:09]} Nxc6 {[%emt 0:00:06]} 23. Ne2 {[%emt 0:12:11]} cxd4 {[%emt 0:10:27]} 24. cxd4 {[%emt 0:00:31]} Nxd4 {[%emt 0:00:14]} 25. Nxd4 {[%emt 0:18:55]} Bc5 {[%emt 0:00:05]} 26. Be3 {[%emt 0:00:00]} e5 {[%emt 0:00:52]} 27. Bf2 {[%emt 0:00:00]} exd4 {[%emt 0:01:29]} 28. Bxd4 {[%emt 0:00:00]} Qg5 {[%emt 0:00:19]} 29. g3 {[%emt 0:00:00]} Qe5 {[%emt 0:04:00]} 30. Bxc5 {[%emt 0:00:00]} bxc5 {[%emt 0:00:10]} 31. Qe2 {[%emt 0:00:00]} Kh7 {[%emt 0:03:09]} 32. Re1 {[%emt 0:00:00]} Qd4+ {[%emt 0:02:07]} 33. Qf2 {[%emt 0:00:00]} Qb4 {[%emt 0:00:23]} 34. Rc1 {[%emt 0:00:00]} d4 {[%emt 0:01:42]} 35. Qe1 {[%emt 0:00:00]} Qxe1+ {[%emt 0:00:28]} 36. Rxe1 {[%emt 0:00:00]} Bd5 {[%emt 0:00:04]} 37. b3 {[%emt 0:00:00]} c4 {[%emt 0:00:31]} 38. bxc4 {[%emt 0:00:00]} Bxc4 {[%emt 0:00:05]} 39. a3 {[%emt 0:00:00]} d3 {[%emt 0:00:22]} 40. Kf2 {[%emt 0:00:00]} Bb3 {[%emt 0:00:40]} 41. Ke3 {[%emt 0:25:32]} Bc2 {[%emt 0:30:07]} 42. Kd2 {[%emt 0:00:59]} a5 {[%emt 0:00:00]} 43. Re6 {[%emt 0:00:00]} a4 {[%emt 0:00:00]} 44. h4 {[%emt 0:00:00]} g6 {[%emt 0:01:11]} 45. Re7+ {[%emt 0:00:00]} Kg8 {[%emt 0:00:07]} 46. Rd7 {[%emt 0:00:00]} h5 {[%emt 0:02:00]} 47. Rxd3 {[%emt 0:00:00]} Bxd3 {[%emt 0:00:05]} 48. Kxd3 {[%emt 0:00:00]} Kf7 {[%emt 0:00:14]} 49. Kc4 {[%emt 0:00:00]} g5 {[%emt 0:00:38]} 50. Kb4 {[%emt 0:00:00]} gxh4 {[%emt 0:01:10]} 51. gxh4 {[%emt 0:00:00]} Kf6 {[%emt 0:00:07]} 52. Kxa4 {[%emt 0:00:00]} Kf5 {[%emt 0:00:04]} 53. Kb5 {[%emt 0:00:00]} Kg4 {[%emt 0:00:05]} 54. a4 {[%emt 0:00:00]} Kxh4 {[%emt 0:00:06]} 55. a5 {[%emt 0:00:00]} Kg3 {[%emt 0:00:10]} 56. a6 {[%emt 0:00:00]} h4 {[%emt 0:00:12]} 57. a7 {[%emt 0:00:00]} h3 {[%emt 0:00:12]} 58. a8=Q {[%emt 0:00:00]} Kh2 {[%emt 0:00:11]} 59. Kc4 {[%emt 0:00:00]} Kg1 {[%emt 0:00:11]} 60. Qg8+ {[%emt 0:00:06]} Kh1 {[%emt 0:00:29]} 61. Qd5+ {[%emt 0:00:11]} Kg1 {[%emt 0:00:07]} 62. Qd4+ {[%emt 0:00:10]} Kh1 {[%emt 0:00:11]} 63. Qe4+ {[%emt 0:00:06]} Kg1 {[%emt 0:00:08]} 64. Qg4+ {[%emt 0:00:09]} 1-0

[Event "XTX Markets London Masters 2024"]
[Site "London"]
[Date "2024.11.30"]
[Round "2.39"]
[White "Hera, Imre Jr."]
[Black "Zhou, Yang-Fan"]
[Result "1/2-1/2"]
[ECO "A05"]
[WhiteElo "2522"]
[BlackElo "2418"]
[Annotator "TA"]
[PlyCount "29"]
[EventDate "2024.11.28"]
[EventType "swiss"]
[EventCountry "ENG"]
[SourceTitle "playchess.com"]
[Source "ChessBase"]
[SourceQuality "1"]
[TimeControl "40/5400+30:1800+30"]

{[%evp 11,29,-8,-12,-5,-2,-6,0,-1,0,-12,-18,-22,-23,-27,-36,-22,-25,-17,-17,-26]} 1. Nf3 {[%emt 0:00:28]} Nf6 {[%emt 0:00:05]} 2. g3 {[%emt 0:00:03]} g6 {[%emt 0:00:04]} 3. b3 {[%emt 0:00:03]} d5 {[%emt 0:00:15]} 4. Bb2 {[%emt 0:00:59]} c5 {[%emt 0:00:09]} 5. Bg2 {[%emt 0:01:40]} Bg7 {[%emt 0:00:40]} 6. O-O {[%emt 0:00:19]} O-O {[%emt 0:00:12]} 7. e3 {[%emt 0:00:28]} Nc6 {[%emt 0:04:22]} 8. Ne5 {[%emt 0:01:55]} Nxe5 {[%emt 0:10:54]} 9. Bxe5 {[%emt 0:00:02]} Bg4 {[%emt 0:00:06]} 10. Qc1 {[%emt 0:10:00]} Qd7 {[%emt 0:00:23]} 11. Qb2 {[%emt 0:00:46]} Bh3 {[%emt 0:01:42]} 12. d3 {[%emt 0:05:34]} Bxg2 {[%emt 0:09:38]} 13. Kxg2 {[%emt 0:00:02]} Ne8 {[%emt 0:00:07]} 14. Bxg7 {[%emt 0:02:23]} Nxg7 {[%emt 0:00:04]} 15. Nd2 {[%emt 0:00:22] An uneventful encounter.   Weighted Error Value: White=0.03 (flawless) /Black=0.00 (flawless) .  OK:         	White=4     	Black=5} 1/2-1/2